[Event "Israeli Championship 2022"]
[Site "Yosiah Arad"]
[Date "2022.12.05"]
[Round "1.6"]
[White "Kupervaser, Erez"]
[Black "Erenberg, Ariel"]
[Result "1/2-1/2"]
[ECO "C45"]
[WhiteElo "2331"]
[BlackElo "2514"]
[Annotator "TA"]
[PlyCount "105"]
[EventDate "2022.12.05"]
[EventType "swiss"]
[EventCountry "ISR"]
[SourceTitle "playchess.com"]
[Source "ChessBase"]
[SourceQuality "1"]
[TimeControl "40/5400+30:1800+30"]

{[%evp 15,105,20,25,21,27,23,20,-72,-69,-64,-71,-98,-63,-68,-58,-56,-56,-50,-56,-52,-11,-8,0,-9,0,-7,0,0,29,16,29,33,41,56,79,58,58,0,0,0,0,0,0,0,0,22,36,10,10,9,93,97,88,89,96,72,185,131,162,149,262,256,241,39,39,39,74,59,339,182,159,5,5,5,6,6,31,8,26,10,20,16,20,16,6,0,0,0,0,0,0,0]} 1. e4 {[%emt 0:00:05]} e5 {[%emt 0:00:26]} 2. Nf3 {[%emt 0:01:57]} Nc6 {[%emt 0:00:13]} 3. d4 {[%emt 0:00:24]} exd4 {[%emt 0:00:12]} 4. Nxd4 {[%emt 0:00:09]} Qf6 {[%emt 0:01:29]} 5. Be3 {[%emt 0:01:16]} Bc5 {[%emt 0:00:22]} 6. c3 {[%emt 0:00:29]} Nge7 {[%emt 0:01:07][%cal Bg8e7,Be7c6,Bc6e5,Be5c4][%mdl 32]} 7. Bc4 {[%emt 0:03:56]} O-O {[%emt 0:01:51]} 8. O-O {[%emt 0:01:09]} b6 {[%emt 0:01:06]} 9. Qd2 {[%emt 0:11:18] C45: Scotch Game.} Qg6 {[%emt 0:02:23]} 10. Nxc6 {[%emt 0:11:04]} Nxc6 {[%emt 0:01:47] [#]} 11. Bd5 $146 {[%emt 0:02:46]} (11. Bxc5 $11 {keeps the balance.} bxc5 12. Na3) ({Predecessor:} 11. Bxc5 bxc5 12. Na3 Rb8 13. f3 d6 14. Rae1 Ne5 15. Be2 f5 16. Nc4 Nf7 17. Bd3 fxe4 18. Bxe4 {1-0 (45) Asis Gargatagli,H (2515)-Cuenca Jimenez,J (2506) Linares 2018}) 11... Ba6 $1 $17 {[%emt 0:08:07]} 12. Re1 {[%emt 0:14:04] [#]} Ne5 $1 {[%emt 0:03:54]} 13. Kh1 {[%emt 0:01:11] Threatens to win with Bxc5.} (13. Qd1 Rab8) 13... c6 {[%emt 0:15:19]} 14. Bxc5 {[%emt 0:05:23]} bxc5 {[%emt 0:03:11]} 15. Bb3 {[%emt 0:00:53][%cal Oc3c4]} Rab8 {[%emt 0:01:03] Against c4. And now ...Nd3 would win.} 16. c4 {[%emt 0:07:11]} Nxc4 {[%emt 0:18:38]} 17. Qc3 {[%emt 0:09:42]} d5 {[%emt 0:08:11] White must now prevent ...d4.} (17... Qf6 $5 18. Qxf6 gxf6 19. Bxc4 Bxc4 $15) 18. Bxc4 {[%emt 0:01:34]} Bxc4 {[%emt 0:02:55]} 19. b3 {[%emt 0:02:07]} Ba6 {[%emt 0:00:29]} 20. exd5 {[%emt 0:00:46]} cxd5 {[%emt 0:00:08]} 21. Qxc5 {[%emt 0:00:30]} Rbc8 {[%emt 0:04:47][%cal Bb8c8,Bc8c2,Bc2b2][%mdl 32]} 22. Qxa7 {[%emt 0:03:36]} Qf6 {[%emt 0:04:21]} 23. Nd2 {[%emt 0:01:13]} Rc2 {[%emt 0:01:54]} 24. Nf3 {[%emt 0:03:38]} Bd3 {[%emt 0:00:32]} 25. Rac1 {[%emt 0:04:55]} Rb2 $1 {[%emt 0:02:43]} 26. Qe3 {[%emt 0:06:20]} (26. Re5 $1 $14) 26... Be4 $11 {[%emt 0:00:21]} 27. Re2 {[%emt 0:00:59]} Bxf3 {[%emt 0:05:02]} 28. gxf3 {[%emt 0:00:06]} d4 {[%emt 0:00:17]} 29. Qd3 {[%emt 0:00:26]} Rxe2 {[%emt 0:00:14]} 30. Qxe2 {[%emt 0:00:01][%mdl 4096] Endgame KQR-KQR} g6 {[%emt 0:00:23]} 31. Qe4 {[%emt 0:00:49]} Rd8 $1 {[%emt 0:00:59]} 32. Rd1 {[%emt 0:01:14]} Qd6 {[%emt 0:00:07] [#]} (32... Qa6 $1 $11) 33. Rd3 $1 $16 {[%emt 0:01:22]} Qc5 {[%emt 0:01:33]} 34. Kg2 {[%emt 0:01:06]} h5 {[%emt 0:01:01]} 35. h4 {[%emt 0:00:59]} Qb4 {[%emt 0:04:00] [#]} (35... g5 $16) 36. a4 {[%emt 0:00:42]} (36. Qe5 $1 $18) 36... Qc5 {[%emt 0:01:32]} 37. a5 {[%emt 0:00:16]} Qxa5 {[%emt 0:00:16]} (37... Qd6 $16 38. Qe1 Rb8) 38. Rxd4 $18 {[%emt 0:00:03] aiming for b4.} Rb8 {[%emt 0:00:25]} 39. Rd7 $2 {[%emt 0:00:47]} ({White should try} 39. b4 $18 Qb5 40. Qe7) 39... Qb5 {[%emt 0:02:09]} 40. Qf4 {[%emt 0:03:08]} Rf8 {[%emt 0:01:50]} 41. Qa4 {[%emt 0:30:31] White is more active.} Qf5 {[%emt 0:31:57][%mdl 8192]} (41... Qxa4 $1 $14 42. bxa4 Ra8) 42. Ra7 {[%emt 0:00:00]} (42. Qd4 $142) 42... Qd5 {[%emt 0:00:00]} 43. Qc4 {[%emt 0:00:00] Inhibits Rc8.} (43. b4 $16) 43... Qxc4 $11 {[%emt 0:00:00]} 44. bxc4 {[%emt 0:00:00] KR-KR} Rc8 {[%emt 0:00:00] Inhibits c5.} 45. Ra4 {[%emt 0:00:00]} Kg7 {[%emt 0:00:00]} 46. Kg3 {[%emt 0:00:00]} f6 {[%emt 0:00:00]} 47. Kf4 {[%emt 0:00:00]} Rc5 {[%emt 0:00:00] The position is equal.} 48. Ke4 {[%emt 0:00:00]} g5 {[%emt 0:00:00]} 49. hxg5 {[%emt 0:00:00]} fxg5 {[%emt 0:00:00]} 50. Ra7+ {[%emt 0:00:00]} Kg6 {[%emt 0:00:00]} 51. Ra6+ {[%emt 0:00:00]} Kf7 {[%emt 0:00:00]} 52. Ra7+ {[%emt 0:00:00]} Kf6 {[%emt 0:00:00]} 53. Ra6+ {[%emt 0:06:55] Weighted Error Value: White=0.24 (precise) /Black=0.20 (precise)} 1/2-1/2

[Event "Israeli Championship 2022"]
[Site "Yosiah Arad"]
[Date "2022.12.05"]
[Round "1.7"]
[White "Gorodetzky, David"]
[Black "Shachar, Ehud"]
[Result "1-0"]
[ECO "C02"]
[WhiteElo "2495"]
[BlackElo "2319"]
[Annotator "TA"]
[PlyCount "121"]
[EventDate "2022.12.05"]
[EventType "swiss"]
[EventCountry "ISR"]
[SourceTitle "playchess.com"]
[Source "ChessBase"]
[SourceQuality "1"]
[TimeControl "40/5400+30:1800+30"]

{[%evp 19,121,14,18,-8,0,-13,0,-35,-11,-34,-8,-14,-13,-9,18,18,32,28,60,49,72,73,77,65,67,65,69,52,63,52,65,70,67,66,64,22,65,41,67,68,71,67,71,60,87,87,85,85,78,78,84,78,148,92,112,118,118,95,346,108,101,111,118,122,187,187,185,213,214,219,220,200,193,132,122,124,293,100,123,120,106,81,109,76,329,325,340,324,320,322,685,669,971,957,892,887,1442,1404,1427,1396,1852,1829,975,926]} 1. e4 {[%emt 0:00:04]} e6 {[%emt 0:00:07]} 2. d4 {[%emt 0:00:04]} d5 {[%emt 0:00:05]} 3. e5 {[%emt 0:00:41]} c5 {[%emt 0:00:20]} 4. c3 {[%emt 0:00:03]} Nc6 {[%emt 0:00:07]} 5. Nf3 {[%emt 0:00:07]} Nge7 {[%emt 0:01:40]} 6. Bd3 {[%emt 0:12:59]} cxd4 {[%emt 0:00:27]} 7. cxd4 {[%emt 0:00:19]} Nf5 {[%emt 0:00:13]} 8. Bxf5 {[%emt 0:01:56]} exf5 {[%emt 0:00:09]} 9. Nc3 {[%emt 0:00:52]} Be6 {[%emt 0:02:19]} 10. h4 {[%emt 0:03:41]} h6 {[%emt 0:01:51]} 11. Be3 {[%emt 0:10:37] C02: French: Advance Variation.} Rc8 {[%emt 0:03:30]} 12. Rc1 {[%emt 0:07:05]} Be7 {[%emt 0:03:23] [#]} 13. h5 $146 {[%emt 0:11:03] The position is equal.} ({Predecessor:} 13. g3 Kd7 14. Kf1 Kc7 15. Kg2 Kb8 16. Qd2 Na5 17. b3 b6 18. Ne1 Rg8 19. h5 {1-0 (32) Stanciu,A (2310)-Navrotescu,C (2335) Predeal 1988}) 13... Na5 {[%emt 0:10:26]} 14. b3 {[%emt 0:04:56]} Nc6 {[%emt 0:08:58]} (14... f4 $5 {[%cal Rf4e3]} 15. Bd2 (15. Bxf4 Ba3 $15) 15... Nc6 $11) 15. Ne2 {[%emt 0:07:48]} Ba3 {[%emt 0:02:50]} 16. Rc2 {[%emt 0:02:50]} Nb4 {[%emt 0:02:13]} 17. Rxc8 {[%emt 0:01:11]} Qxc8 {[%emt 0:00:12]} 18. O-O {[%emt 0:00:41][%cal Bh1f1,Bf1d1,Bd1c1][%mdl 32]} Qc2 {[%emt 0:05:58]} 19. Bc1 {[%emt 0:04:37]} Qxd1 {[%emt 0:09:18]} 20. Rxd1 {[%emt 0:00:05]} Bxc1 {[%emt 0:00:10]} 21. Rxc1 {[%emt 0:00:42]} Kd7 {[%emt 0:00:34] Inhibits Rc7+.} 22. a3 {[%emt 0:02:35]} Nc6 {[%emt 0:00:10]} 23. Rc3 {[%emt 0:10:00]} Rc8 {[%emt 0:10:30][%cal Of5f4]} 24. Kf1 {[%emt 0:01:17]} Na5 {[%emt 0:04:12]} 25. Rxc8 {[%emt 0:00:22]} Kxc8 $14 {[%emt 0:00:09][%mdl 4096] Endgame KBN-KNN} 26. Nd2 {[%emt 0:00:22]} Nc6 {[%emt 0:10:53]} 27. f3 {[%emt 0:07:24]} Kd7 {[%emt 0:07:33]} 28. Kf2 {[%emt 0:00:50]} b6 {[%emt 0:06:43]} 29. Ke3 {[%emt 0:00:16]} Ne7 {[%emt 0:00:43]} 30. Nb1 {[%emt 0:04:10]} a6 {[%emt 0:01:49]} 31. Nbc3 {[%emt 0:00:28]} Kc7 {[%emt 0:00:50]} 32. Nf4 {[%emt 0:00:43]} Kd7 {[%emt 0:02:16]} 33. g3 {[%emt 0:02:14]} Kc6 {[%emt 0:02:20]} 34. b4 {[%emt 0:02:45]} Kd7 {[%emt 0:00:49]} 35. a4 {[%emt 0:00:28]} Kc7 {[%emt 0:01:46]} ({Black should try} 35... a5) 36. Kd3 {[%emt 0:01:11] White has more active pieces.} (36. a5 $142 $1) 36... Kd7 {[%emt 0:00:44]} 37. a5 {[%emt 0:00:56]} bxa5 {[%emt 0:00:58]} 38. bxa5 {[%emt 0:00:01]} Kc7 $2 {[%emt 0:00:47][%mdl 8192]} (38... g6 $16) 39. Na4 $2 {[%emt 0:01:01]} (39. Nxe6+ $1 $18 fxe6 40. Na4) 39... Bd7 $16 {[%emt 0:00:55]} 40. Nc5 {[%emt 0:00:34]} Bb5+ {[%emt 0:00:27]} 41. Kc3 {[%emt 0:31:02]} g5 {[%emt 0:13:30]} (41... Bc4 $16) 42. Nfd3 $18 {[%emt 0:00:00]} Nc6 {[%emt 0:09:12]} 43. f4 $1 {[%emt 0:00:00]} gxf4 {[%emt 0:04:15]} 44. Nxf4 {[%emt 0:00:00] Pair of Knights!} Bc4 {[%emt 0:00:17]} 45. Ng2 {[%emt 0:00:00]} Be2 {[%emt 0:01:16]} 46. Ne3 {[%emt 0:00:00]} (46. Nh4 $1 $18) 46... Ne7 $16 {[%emt 0:00:20]} 47. Kd2 {[%emt 0:00:37]} Bb5 {[%emt 0:01:01]} (47... Bxh5 $16 48. Nxa6+ Kb7) 48. Nc2 $2 {[%emt 0:01:07]} (48. Ke1 $18 {and the rest is easy.}) 48... Nc6 {[%emt 0:00:38] [#]} 49. Ke3 $1 {[%emt 0:00:44]} Nxa5 {[%emt 0:01:55] [#]} 50. Nb4 {[%emt 0:00:01][%csl LRa6,LRd5]} Bc4 {[%emt 0:00:40]} 51. Nbxa6+ {[%emt 0:01:57]} Kb6 $2 {[%emt 0:01:58][%mdl 8192]} (51... Bxa6 $16 52. Nxa6+ Kd7) 52. Nb8 $18 {[%emt 0:00:21]} Kc7 {[%emt 0:00:55]} 53. Nbd7 {[%emt 0:00:17] Black must now prevent Nf6.} Nc6 {[%emt 0:00:29]} 54. Nf6 {[%emt 0:00:09] Hoping for Ng8.} Ne7 {[%emt 0:00:17] Against Ng8} (54... Nb4 55. Ng8 Nc2+ 56. Kf2 Nxd4 57. Nxh6 f4) 55. Ne8+ {[%emt 0:00:04] White is clearly winning.} Kc6 {[%emt 0:01:08]} 56. Nd6 {[%emt 0:00:13]} Ng8 {[%emt 0:00:27]} 57. Nxf7 {[%emt 0:00:22]} Ba2 {[%emt 0:00:07]} 58. Kf4 {[%emt 0:01:54]} Bb1 {[%emt 0:00:06]} 59. Ne6 {[%emt 0:00:32]} Kd7 {[%emt 0:00:24]} 60. Ng7 {[%emt 0:00:10]} Ke7 {[%emt 0:00:22]} 61. Nd6 {[%emt 0:00:06] Weighted Error Value: White=0.19 (very precise) /Black=0.44} ({Not} 61. Nxf5+ Kxf7 62. Nd6+ Ke6 $15) 1-0

[Event "Israeli Championship 2022"]
[Site "Yosiah Arad"]
[Date "2022.12.05"]
[Round "1.8"]
[White "Streltsov, Alexey"]
[Black "Zanan, Evgeny"]
[Result "0-1"]
[ECO "C47"]
[WhiteElo "2313"]
[BlackElo "2485"]
[Annotator "TA"]
[PlyCount "78"]
[EventDate "2022.12.05"]
[EventType "swiss"]
[EventCountry "ISR"]
[SourceTitle "playchess.com"]
[Source "ChessBase"]
[SourceQuality "1"]
[TimeControl "40/5400+30:1800+30"]

{[%evp 24,78,12,0,0,0,0,-1,0,0,0,0,-8,-18,-16,-23,-15,-23,0,-9,-8,-18,-14,-30,-27,-28,-12,-47,-16,-10,-7,-154,-138,-139,-143,-176,-86,-342,-374,-326,-322,-978,-1089,-3257,-2961,-2339,-2216,-29994,-29987,-29983,0,-29994,-12664,-29990,-29991,-29991,-29992]} 1. e4 {[%emt 0:00:03]} e5 {[%emt 0:00:27]} 2. Nf3 {[%emt 0:00:10]} Nc6 {[%emt 0:00:05]} 3. Nc3 {[%emt 0:00:12]} Nf6 {[%emt 0:00:20]} 4. d4 {[%emt 0:00:13]} exd4 {[%emt 0:00:17]} 5. Nxd4 {[%emt 0:00:07]} Bb4 {[%emt 0:12:27]} 6. Nxc6 {[%emt 0:00:12]} bxc6 {[%emt 0:00:04]} 7. Bd3 {[%emt 0:00:18]} d5 {[%emt 0:00:20]} 8. exd5 {[%emt 0:00:10]} O-O {[%emt 0:00:05]} 9. O-O {[%emt 0:00:11]} cxd5 {[%emt 0:04:07]} 10. Bg5 {[%emt 0:00:48]} c6 {[%emt 0:00:28]} 11. Qf3 {[%emt 0:00:17]} Be7 {[%emt 0:01:14] 11...h6 is a critical line.} 12. Rae1 {[%emt 0:05:08]} Rb8 {[%emt 0:03:13]} 13. Nd1 {[%emt 0:09:12]} Be6 {[%emt 0:10:17] C47: Scotch Four Knights and Four Knights with 4 g3.} 14. b3 {[%emt 0:08:52]} h6 {[%emt 0:09:25]} 15. Bf4 {[%emt 0:02:38]} Bd6 {[%emt 0:01:46] [#] The position is equal.} 16. Ne3 $146 {[%emt 0:08:49]} ({Predecessor:} 16. Bxd6 Qxd6 17. Ne3 Qa3 18. Nf5 Bxf5 19. Qxf5 Rbe8 20. Qf4 Qa5 21. Rxe8 Rxe8 22. Qd4 {0-1 (51) Alias Franco,R (2210)-Garbisu de Goni,U (2430) Euskadi 1999}) 16... c5 {[%emt 0:11:57]} 17. Bg3 {[%emt 0:05:35]} Bxg3 {[%emt 0:05:29]} 18. fxg3 {[%emt 0:01:16]} a5 {[%emt 0:03:51]} 19. Kh1 {[%emt 0:11:13]} Qd6 {[%emt 0:09:56]} 20. Qd1 {[%emt 0:06:30]} Nd7 {[%emt 0:09:18]} 21. Qh5 {[%emt 0:20:56]} (21. Bc4 $5) 21... a4 {[%emt 0:09:03]} 22. Nf5 {[%emt 0:02:57]} Bxf5 {[%emt 0:00:17]} 23. Rxf5 {[%emt 0:00:28]} Nf6 {[%emt 0:00:26]} 24. Qf3 {[%emt 0:05:35]} Rfe8 {[%emt 0:01:37]} 25. Rf1 {[%emt 0:00:55]} Re6 {[%emt 0:01:56]} 26. g4 {[%emt 0:02:15]} Rbe8 {[%emt 0:03:36]} (26... Qc7 {simplifies} 27. Qf4 Rc8 28. Qxc7 Rxc7 29. R5f4 axb3 30. axb3 d4) 27. g5 {[%emt 0:01:36]} (27. Qf4 $11) 27... hxg5 $1 $17 {[%emt 0:00:41]} 28. Rxg5 {[%emt 0:00:29]} Re1 {[%emt 0:00:23]} 29. Rf5 {[%emt 0:03:59] [#]} R8e3 {[%emt 0:01:55]} (29... Rxf1+ $1 $19 30. Bxf1 Re1) 30. Rxe1 $4 {[%emt 0:02:05][%mdl 8192]} (30. Qf2 $17) 30... Rxe1+ $19 {[%emt 0:00:00]} 31. Bf1 {[%emt 0:00:01]} a3 {[%emt 0:00:00] Threatens to win with ...Rc1.} 32. Qc3 $2 {[%emt 0:02:00] [#]} (32. Rf4) 32... Ng4 $1 {[%emt 0:00:42][%csl Gg4][%cal Rd6h2]} 33. g3 {[%emt 0:00:01] [#]} (33. Qh3 Ne3) 33... Qh6 $1 {[%emt 0:00:28][%csl Gg4][%cal Rh6h2]} 34. h4 {[%emt 0:00:29]} Qe3 {[%emt 0:00:38]} 35. Qa5 {[%emt 0:00:57]} Qe4+ {[%emt 0:00:19]} 36. Kg1 {[%emt 0:00:02]} Qe3+ {[%emt 0:00:09]} (36... Qxf5 $2 {too greedy.} 37. Qxe1 Qxc2 38. Qe8+ Kh7 39. Qe2 $19) 37. Kh1 $1 {[%emt 0:00:05] [#]} Qxg3 {[%emt 0:00:48]} (37... Rxf1+ $142 $1 {[%mdl 512]} 38. Rxf1 Qe2 39. Qd8+ Kh7 40. Rf2 Qxf2 41. Qg8+ Kxg8 42. h5 Qh2#) 38. Qa8+ {[%emt 0:02:14]} Kh7 {[%emt 0:00:04][%csl Gg4][%cal Rg3h2]} 39. Rh5+ {[%emt 0:00:03]} Nh6 {[%emt 0:00:07] Weighted Error Value: White=1.04/Black=0.38} 0-1

[Event "Israeli Championship 2022"]
[Site "Yosiah Arad"]
[Date "2022.12.05"]
[Round "1.9"]
[White "Parkhov, Yair"]
[Black "Shohat, Yotam"]
[Result "1-0"]
[ECO "E73"]
[WhiteElo "2470"]
[BlackElo "2294"]
[Annotator "TA"]
[PlyCount "83"]
[EventDate "2022.12.05"]
[EventType "swiss"]
[EventCountry "ISR"]
[SourceTitle "playchess.com"]
[Source "ChessBase"]
[SourceQuality "1"]
[TimeControl "40/5400+30:1800+30"]

{[%evp 12,83,38,35,27,27,22,31,33,10,22,2,28,41,54,39,81,70,91,102,102,83,101,121,144,130,139,124,126,125,143,139,140,95,147,147,149,138,134,83,99,104,111,100,105,67,118,114,117,124,149,149,141,147,152,145,166,152,172,153,154,85,88,47,654,608,636,557,939,835,29987,29988,29988,3494]} 1. d4 {[%emt 0:00:03]} Nf6 {[%emt 0:00:05]} 2. c4 {[%emt 0:00:05]} g6 {[%emt 0:00:03]} 3. Nc3 {[%emt 0:00:04]} Bg7 {[%emt 0:00:05]} 4. e4 {[%emt 0:00:05]} O-O {[%emt 0:00:06]} 5. Be2 {[%emt 0:00:05]} d6 {[%emt 0:00:05]} 6. Be3 {[%emt 0:00:05]} Nc6 {[%emt 0:00:04][%cal Bb8c6,Bc6e5,Be5g4][%mdl 32]} 7. d5 {[%emt 0:00:08]} Ne5 {[%emt 0:00:04] E73: King's Indian: Averbakh Variation without 6...c5.} 8. f4 {[%emt 0:00:09] Prevents c6.} Neg4 {[%emt 0:00:06]} 9. Bd2 {[%emt 0:00:06]} Nh6 {[%emt 0:00:05] White is slightly better.} 10. Nf3 {[%emt 0:00:14] 10.h3 might become the main line.} c6 {[%emt 0:01:58]} 11. a4 {[%emt 0:00:35]} cxd5 {[%emt 0:14:53]} 12. cxd5 {[%emt 0:00:24]} e6 {[%emt 0:03:09]} 13. dxe6 {[%emt 0:03:54]} fxe6 {[%emt 0:04:44] [#]} 14. Qb3 $146 {[%emt 0:05:55]} ({Predecessor:} 14. Ng5 Nf7 15. Nxf7 Rxf7 16. Be3 Qe7 17. O-O Bd7 18. Qd3 Bc6 19. b4 Nh5 20. Bxh5 gxh5 {½-½ (49) Khanin,S (2510)-Theodorou,N (2561) Dulles 2022}) 14... d5 {[%emt 0:07:39] [#]} 15. e5 $1 {[%emt 0:03:43] Against d4} Nd7 {[%emt 0:02:43]} 16. O-O {[%emt 0:09:04]} (16. Ng5 {is more complex.} Qe7 17. Nb5 Nc5 18. Qh3) 16... Nf5 {[%emt 0:01:43]} 17. a5 {[%emt 0:05:05]} Nb8 {[%emt 0:12:33]} 18. Nb5 {[%emt 0:15:40]} Nc6 {[%emt 0:02:23]} 19. g4 {[%emt 0:01:22] Inhibits a6.} Nh6 {[%emt 0:03:39]} 20. h3 {[%emt 0:01:19]} Nf7 {[%emt 0:08:44][%cal Og6g5] Prevents Nd6.} 21. g5 {[%emt 0:06:00]} Bd7 {[%emt 0:05:55]} 22. h4 {[%emt 0:12:46]} a6 {[%emt 0:03:17]} (22... Qe7 $142) 23. Nbd4 $16 {[%emt 0:00:34]} Nxd4 {[%emt 0:00:42]} 24. Nxd4 {[%emt 0:00:05]} Nd6 {[%emt 0:01:03]} 25. Bb4 {[%emt 0:12:24] White has more active pieces.} (25. Qh3 $142) 25... Nf5 {[%emt 0:07:52]} 26. Nxf5 {[%emt 0:02:07]} Rxf5 {[%emt 0:01:53]} 27. Bg4 {[%emt 0:01:08]} Rf7 {[%emt 0:07:19]} 28. Qh3 {[%emt 0:00:10]} Bf8 {[%emt 0:03:56]} (28... Rc8 $14) 29. Bxf8 {[%emt 0:03:32]} Qxf8 {[%emt 0:00:20]} 30. Bxe6 {[%emt 0:01:37]} Qc5+ {[%emt 0:04:55]} 31. Rf2 {[%emt 0:00:36]} Bxe6 {[%emt 0:02:23]} 32. Qxe6 {[%emt 0:00:05]} Raf8 {[%emt 0:00:11]} 33. Raf1 {[%emt 0:03:09]} Kh8 {[%emt 0:01:36]} 34. Qb6 {[%emt 0:02:14]} Qc4 {[%emt 0:00:44]} 35. Qe3 {[%emt 0:00:38]} Kg8 {[%emt 0:00:30]} 36. h5 {[%emt 0:02:20]} (36. Kg2 $142) 36... gxh5 {[%emt 0:00:25]} 37. e6 {[%emt 0:00:46]} Rg7 {[%emt 0:00:36][%mdl 8192] Black cannot hold the game after this.} (37... Rf5 $14) 38. f5 $18 {[%emt 0:07:56] [#] And now f6 would win.} ({Weaker is} 38. e7 Re8 $15) 38... d4 {[%emt 0:00:03] Against f6} 39. Qg3 {[%emt 0:00:09]} h6 {[%emt 0:00:11]} 40. g6 {[%emt 0:00:24] Black must now prevent f6.} Rf6 {[%emt 0:01:06]} 41. Qe5 {[%emt 0:31:50]} Rf8 {[%emt 0:30:26]} 42. Rg2 {[%emt 0:00:59] Weighted Error Value: White=0.16 (very precise) /Black=0.41} (42. e7 $142 Qc8 43. exf8=Q+ Qxf8 44. Rg2 Re7 45. Qd5+ Kg7 46. f6+ Qxf6 47. Rxf6) 1-0

[Event "Israeli Championship 2022"]
[Site "Yosiah Arad"]
[Date "2022.12.05"]
[Round "1.10"]
[White "Ben-Menachem, Itzhak"]
[Black "Gorshtein, Ido"]
[Result "0-1"]
[ECO "A88"]
[WhiteElo "2291"]
[BlackElo "2469"]
[Annotator "TA"]
[PlyCount "108"]
[EventDate "2022.12.05"]
[EventType "swiss"]
[EventCountry "ISR"]
[SourceTitle "playchess.com"]
[Source "ChessBase"]
[SourceQuality "1"]
[TimeControl "40/5400+30:1800+30"]

{[%evp 15,108,25,25,27,27,24,31,35,39,18,9,0,0,0,0,0,0,0,0,1,22,-11,21,0,0,-43,0,-74,19,20,21,23,22,0,0,-20,-20,-20,-20,-25,-24,-72,-70,-70,-33,-73,-16,-25,0,-10,0,0,0,-12,0,0,0,-10,0,0,0,-51,0,-48,-33,-48,0,0,0,0,0,0,0,0,0,0,0,-19,0,0,0,0,0,-258,-277,-274,-167,-243,-26,-15,-26,-28,-27,-29961,-7697]} 1. d4 {[%emt 0:00:03]} f5 {[%emt 0:00:05]} 2. g3 {[%emt 0:00:07]} Nf6 {[%emt 0:00:05]} 3. Bg2 {[%emt 0:00:01]} g6 {[%emt 0:00:09]} 4. c4 {[%emt 0:00:07]} Bg7 {[%emt 0:02:48]} 5. Nf3 {[%emt 0:00:02]} O-O {[%emt 0:00:13]} 6. O-O {[%emt 0:00:09]} d6 {[%emt 0:00:02]} 7. Nc3 {[%emt 0:00:16]} c6 $1 {[%emt 0:00:03][%mdl 4] outshines the older 7...Qe8.} 8. Qb3 {[%emt 0:00:48]} Na6 {[%emt 0:04:01]} 9. Bf4 {[%emt 0:00:38] A88: Dutch Defence: Leningrad System: 5 Nf3 0-0 6 0-0 d6 7 Nc3 c6.} Nh5 {[%emt 0:09:18]} 10. c5+ {[%emt 0:16:15]} Kh8 {[%emt 0:03:16]} 11. cxd6 {[%emt 0:00:20] White is slightly better.} exd6 {[%emt 0:02:56] [#]} 12. Bd2 $146 {[%emt 0:04:50]} (12. Bg5 $5 {[%cal Rg5d8]} Qd7 13. e4 $14) ({Predecessor:} 12. Bg5 Qe8 13. Qa3 h6 14. Bd2 Qd8 15. Rad1 g5 16. Bc1 Nc7 17. Rfe1 f4 18. Ne4 {½-½ (56) Bellahcene,B (2522)-Soham,D (2383) Baden-Baden 2021}) 12... Nc7 {[%emt 0:04:55]} 13. e3 {[%emt 0:09:23]} Nf6 {[%emt 0:03:41]} 14. Rac1 {[%emt 0:11:53]} Qe7 {[%emt 0:02:10]} 15. Ne1 {[%emt 0:11:15]} Rb8 {[%emt 0:17:35]} 16. Qc2 {[%emt 0:04:06]} Bd7 {[%emt 0:03:13]} 17. Nd3 {[%emt 0:04:47]} Ne4 {[%emt 0:04:20]} 18. Rfd1 {[%emt 0:00:13]} Rbe8 {[%emt 0:05:29]} 19. Be1 {[%emt 0:00:56]} g5 {[%emt 0:06:13]} 20. a4 {[%emt 0:12:24]} a6 {[%emt 0:04:24]} 21. b4 {[%emt 0:01:43]} (21. Qb3 $11) 21... b5 {[%emt 0:03:03] Black is more active.} (21... Be6 $17) 22. axb5 {[%emt 0:03:53]} axb5 {[%emt 0:00:15]} 23. Ra1 {[%emt 0:01:39]} Ra8 {[%emt 0:01:12]} 24. Rxa8 {[%emt 0:08:08]} Rxa8 {[%emt 0:00:32]} 25. Nxe4 {[%emt 0:01:37]} fxe4 {[%emt 0:00:14]} 26. Nc1 {[%emt 0:00:01]} d5 {[%emt 0:02:16]} 27. Nb3 {[%emt 0:00:04]} Ne8 {[%emt 0:01:57][%cal Bc7e8,Be8d6,Bd6c4][%mdl 32]} 28. Ra1 {[%emt 0:02:51]} (28. Nc5 $11) 28... Rxa1 $17 {[%emt 0:01:00]} 29. Nxa1 {[%emt 0:00:01]} Nd6 {[%emt 0:03:42]} 30. Qa2 {[%emt 0:00:28]} Bg4 {[%emt 0:04:52]} (30... g4 $17) 31. Nb3 {[%emt 0:01:38]} Qd7 {[%emt 0:01:46]} 32. Nc5 {[%emt 0:01:23]} Qc8 {[%emt 0:00:10]} 33. Qa7 {[%emt 0:00:38]} h6 {[%emt 0:01:03]} 34. Bc3 {[%emt 0:00:28]} Nc4 {[%emt 0:02:08]} 35. Bf1 {[%emt 0:00:53]} Kh7 {[%emt 0:00:57]} 36. Bg2 {[%emt 0:00:08]} Nd6 {[%emt 0:03:29]} 37. Bf1 {[%emt 0:00:21]} Kg6 {[%emt 0:01:07]} 38. Bg2 {[%emt 0:01:02]} ({Better is} 38. h3 $1 $11 Bf3 39. Qe7) 38... Bf6 {[%emt 0:00:31]} (38... h5 $15) 39. Bf1 {[%emt 0:00:25]} (39. h3 $1 $11 {is more appropriate.} Bf3 40. g4) 39... h5 $15 {[%emt 0:00:43]} 40. h3 {[%emt 0:03:49]} Bxh3 {[%emt 0:03:08]} (40... Bf5 $1 $15) 41. Bxh3 $11 {[%emt 0:30:28]} Qxh3 {[%emt 0:30:03]} 42. Qc7 {[%emt 0:00:00][%csl LRc6,LRd6]} Nf5 {[%emt 0:00:00] [#] ...h4 is the strong threat.} 43. Nd7 {[%emt 0:00:00] Nf8+ would kill now.} (43. Qxc6 $2 {perishes.} Nxg3 44. Qe8+ Kg7 45. fxg3 Qxg3+ 46. Kh1 Qh3+ 47. Kg1 Qxe3+ 48. Kh2 Qf2+ 49. Kh1 Qf3+ 50. Kh2 Qf4+ 51. Kh1 Qf3+ 52. Kh2 Qxc3 $19) 43... Ne7 {[%emt 0:00:00]} 44. Qd6 {[%emt 0:00:00]} Qf5 {[%emt 0:00:00]} 45. Ne5+ {[%emt 0:00:00]} Kh6 {[%emt 0:00:00]} 46. Nxc6 {[%emt 0:00:00]} Nxc6 {[%emt 0:00:00]} (46... Ng6 $5 {[%cal Rh5h4]}) 47. Qxc6 {[%emt 0:00:00][%mdl 4096] Endgame KQB-KQB} h4 {[%emt 0:00:00] Hoping for ...h3.} 48. Qxb5 {[%emt 0:00:00]} hxg3 {[%emt 0:00:00]} 49. Qf1 {[%emt 0:00:00][%mdl 8192]} (49. Be1 $1 $11 {and White stays safe.}) 49... Qg4 $19 {[%emt 0:00:44]} 50. Bd2 {[%emt 0:00:09]} Kg6 {[%emt 0:03:08] White must now prevent ...gxf2+.} 51. b5 {[%emt 0:01:41]} (51. fxg3 {was called for.} Qxg3+ 52. Qg2) 51... g2 $2 {[%emt 0:00:57]} (51... gxf2+ $19 52. Kxf2 Qf3+ 53. Kg1 Bd8) 52. Qxg2 $11 {[%emt 0:00:26]} Qd1+ {[%emt 0:00:02]} 53. Qf1 {[%emt 0:00:02]} Qxd2 {[%emt 0:00:16]} 54. Qb1 $2 {[%emt 0:00:03][%mdl 8192] [#]} (54. b6 $11 Qb4 55. Qa6) 54... g4 {[%emt 0:00:51] Weighted Error Value: White=0.36/Black=0.20 (precise)} 0-1